[Event "7. Arber-Senioren-Cup 2019"]
[Site "Bodenmais"]
[Date "2019.07.30"]
[Round "4.27"]
[White "Gerl, Hans"]
[Black "Wacker, Manfred"]
[Result "0-1"]
[ECO "E12"]
[WhiteElo "1955"]
[BlackElo "1741"]
[Annotator "NA"]
[PlyCount "113"]
[EventDate "2019.07.27"]
[EventType "swiss"]
[EventCountry "GER"]
[SourceTitle "playchess.com"]
[Source "ChessBase"]
[SourceQuality "1"]
[TimeControl "5400+30"]

1. d4 {[%emt 0:00:00]} Nf6 {[%emt 0:00:00]} 2. c4 {[%emt 0:00:00]} e6 {[%emt 0:00:00]} 3. Nf3 {[%emt 0:00:00]} b6 {[%emt 0:00:00]} 4. a3 {[%emt 0:00:00]} Bb7 {[%emt 0:00:00]} 5. Nc3 {[%emt 0:00:00]} d5 {[%emt 0:00:00]} 6. cxd5 {[%emt 0:00:00]} exd5 {[%emt 0:00:00]} 7. Bg5 {[%emt 0:00:00]} Be7 {[%emt 0:00:00]} 8. e3 {[%emt 0:00:00]} Nbd7 {[%emt 0:00:00]} 9. Bd3 {[%emt 0:00:00]} O-O {[%emt 0:00:00]} 10. O-O {[%emt 0:00:00]} Ne4 {[%emt 0:00:00]} 11. Bxe7 {[%emt 0:00:00]} Qxe7 {[%emt 0:00:00]} 12. Rc1 {[%emt 0:00:00]} Nxc3 {[%emt 0:00:00]} 13. Rxc3 {[%emt 0:00:00]} c5 {[%emt 0:00:00]} 14. Qc2 {[%emt 0:00:00]} h6 {[%emt 0:00:00]} 15. Bb5 {[%emt 0:00:00]} c4 {[%emt 0:00:00]} 16. Bxd7 {[%emt 0:00:00]} Qxd7 {[%emt 0:00:00]} 17. Ne5 {[%emt 0:00:00]} Qe6 {[%emt 0:00:00]} 18. f4 {[%emt 0:00:00]} g6 {[%emt 0:03:47]} 19. Rf3 {[%emt 0:00:00]} Bc8 {[%emt 0:04:22]} 20. f5 {[%emt 0:04:39]} gxf5 {[%emt 0:01:23]} 21. Qe2 {[%emt 0:01:26]} Kh7 {[%emt 0:04:01]} 22. Rc1 {[%emt 0:01:13]} f6 {[%emt 0:03:33]} 23. Ng6 {[%emt 0:03:21]} Kxg6 {[%emt 0:06:30]} 24. Rh3 {[%emt 0:02:02]} Rh8 {[%emt 0:13:33]} 25. Qh5+ {[%emt 0:01:36]} Kg7 {[%emt 0:00:13]} 26. Rg3+ {[%emt 0:04:47]} Kf8 {[%emt 0:00:16]} 27. Rf1 {[%emt 0:02:32]} Qf7 {[%emt 0:03:52]} 28. Qh4 {[%emt 0:03:34]} Be6 {[%emt 0:02:02]} 29. Rgf3 {[%emt 0:02:39]} Ke7 {[%emt 0:03:28]} 30. Kh1 {[%emt 0:00:24]} Rag8 {[%emt 0:01:55]} 31. h3 {[%emt 0:00:24]} h5 {[%emt 0:03:47]} 32. Qe1 {[%emt 0:00:59]} h4 {[%emt 0:05:08]} 33. Qb4+ {[%emt 0:00:47]} Kd8 {[%emt 0:00:31]} 34. Qd6+ {[%emt 0:01:44]} Qd7 {[%emt 0:00:17]} 35. Qb8+ {[%emt 0:00:45]} Ke7 {[%emt 0:00:46]} 36. Qf4 {[%emt 0:00:29]} Qd6 {[%emt 0:01:04]} 37. Kg1 {[%emt 0:00:29]} Qxf4 {[%emt 0:00:41]} 38. exf4 {[%emt 0:00:13]} Rc8 {[%emt 0:03:30]} 39. Re1 {[%emt 0:00:21]} Kd6 {[%emt 0:00:33]} 40. Rfe3 {[%emt 0:00:19]} Rhe8 {[%emt 0:00:34]} 41. Kf2 {[%emt 0:00:24]} Bf7 {[%emt 0:01:02]} 42. g3 {[%emt 0:02:23]} hxg3+ {[%emt 0:01:34]} 43. Rxg3 {[%emt 0:01:38]} Rxe1 {[%emt 0:00:21]} 44. Kxe1 {[%emt 0:00:08]} Re8+ {[%emt 0:00:30]} 45. Kf2 {[%emt 0:00:28]} Re4 {[%emt 0:00:30]} 46. Rg7 {[%emt 0:00:29]} Ke6 {[%emt 0:00:46]} 47. Rh7 {[%emt 0:02:19]} Rxf4+ {[%emt 0:01:07]} 48. Kg3 {[%emt 0:00:15]} Rxd4 {[%emt 0:00:28]} 49. h4 {[%emt 0:00:26]} Rg4+ {[%emt 0:00:37]} 50. Kf3 {[%emt 0:00:26]} d4 {[%emt 0:00:44]} 51. h5 {[%emt 0:00:19]} Rh4 {[%emt 0:01:32]} 52. h6 {[%emt 0:00:24]} d3 {[%emt 0:03:13]} 53. Ke3 {[%emt 0:01:41]} f4+ {[%emt 0:00:36]} 54. Kd2 {[%emt 0:00:36]} f3 {[%emt 0:00:38]} 55. Ke3 {[%emt 0:00:25]} Rh2 {[%emt 0:01:22]} 56. Rh8 {[%emt 0:00:30]} f2 {[%emt 0:01:03]} 57. Kd4 {Ke5+} 0-1

[Event "7. Arber-Senioren-Cup 2019"]
[Site "Bodenmais"]
[Date "2019.07.31"]
[Round "5.1"]
[White "Blechzin, Igor"]
[Black "Pribyl, Josef"]
[Result "1/2-1/2"]
[ECO "A27"]
[WhiteElo "2221"]
[BlackElo "2234"]
[Annotator "NA"]
[PlyCount "21"]
[EventDate "2019.07.27"]
[EventType "swiss"]
[EventCountry "GER"]
[SourceTitle "playchess.com"]
[Source "ChessBase"]
[SourceQuality "1"]
[TimeControl "60/7800+30:0"]

1. c4 {[%emt 0:00:00]} e5 {[%emt 0:00:00]} 2. Nc3 {[%emt 0:05:27]} Nc6 {[%emt 0:00:02]} 3. Nf3 {[%emt 0:00:31]} g6 {[%emt 0:00:39]} 4. d4 {[%emt 0:02:23]} exd4 {[%emt 0:00:12]} 5. Nxd4 {[%emt 0:00:36]} Bg7 {[%emt 0:00:03]} 6. Nxc6 {[%emt 0:00:59]} bxc6 {[%emt 0:00:02]} 7. e4 {[%emt 0:00:53]} d6 {[%emt 0:00:32]} 8. Be2 {[%emt 0:02:03]} Ne7 {[%emt 0:00:03]} 9. O-O {[%emt 0:00:16]} O-O {[%emt 0:00:25]} 10. Bg5 {[%emt 0:01:11]} h6 {[%emt 0:00:58]} 11. Be3 {[%emt 0:01:16]} 1/2-1/2

[Event "7. Arber-Senioren-Cup 2019"]
[Site "Bodenmais"]
[Date "2019.07.31"]
[Round "5.2"]
[White "Lorenc, Tomas"]
[Black "Pirrot, Dieter"]
[Result "0-1"]
[ECO "A20"]
[WhiteElo "2158"]
[BlackElo "2315"]
[Annotator "NA"]
[PlyCount "88"]
[EventDate "2019.07.27"]
[EventType "swiss"]
[EventCountry "GER"]
[SourceTitle "playchess.com"]
[Source "ChessBase"]
[SourceQuality "1"]
[TimeControl "60/7800+30:0"]

1. c4 {[%emt 0:02:13]} e5 {[%emt 0:03:01]} 2. g3 {[%emt 0:01:21]} Nf6 {[%emt 0:00:10]} 3. Bg2 {[%emt 0:00:09]} c6 {[%emt 0:00:12]} 4. Nc3 {[%emt 0:03:31]} d5 {[%emt 0:00:16]} 5. cxd5 {[%emt 0:02:24]} cxd5 {[%emt 0:00:10]} 6. d4 {[%emt 0:00:07]} exd4 {[%emt 0:03:48]} 7. Qxd4 {[%emt 0:00:03]} Nc6 {[%emt 0:00:17]} 8. Qd1 {[%emt 0:08:48]} d4 {[%emt 0:02:28]} 9. Ne4 {[%emt 0:05:44]} Nxe4 {[%emt 0:05:27]} 10. Bxe4 {[%emt 0:00:03]} Bb4+ {[%emt 0:00:19]} 11. Bd2 {[%emt 0:00:14]} Bxd2+ {[%emt 0:00:54]} 12. Qxd2 {[%emt 0:00:03]} O-O {[%emt 0:00:21]} 13. Nf3 {[%emt 0:08:05]} Re8 {[%emt 0:02:19]} 14. Bxc6 {[%emt 0:11:46]} bxc6 {[%emt 0:00:09]} 15. Qxd4 {[%emt 0:00:56]} Ba6 {[%emt 0:26:25]} 16. Qxd8 {[%emt 0:03:55]} Raxd8 {[%emt 0:00:08]} 17. e3 {[%emt 0:00:14]} c5 {[%emt 0:01:19]} 18. Rg1 {[%emt 0:06:34]} c4 {[%emt 0:14:29]} 19. Nd2 {[%emt 0:20:07]} c3 {[%emt 0:15:10]} 20. bxc3 {[%emt 0:01:06]} Rb8 {[%emt 0:00:09]} 21. O-O-O {[%emt 0:07:55]} Be2 {[%emt 0:00:22]} 22. Rde1 {[%emt 0:00:45]} Bd3 {[%emt 0:01:12]} 23. e4 {[%emt 0:07:59]} Rec8 {[%emt 0:06:52]} 24. Nb3 {[%emt 0:00:57]} a5 {[%emt 0:00:36]} 25. Kd2 {[%emt 0:01:51]} Bc4 {[%emt 0:00:45]} 26. Rb1 {[%emt 0:10:55]} a4 {[%emt 0:00:18]} 27. Nd4 {[%emt 0:05:30]} Bxa2 {[%emt 0:00:29]} 28. Rxb8 {[%emt 0:00:20]} Rxb8 {[%emt 0:00:07]} 29. Kc2 {[%emt 0:00:13]} a3 {[%emt 0:00:43]} 30. Ra1 {[%emt 0:03:23]} Rb2+ {[%emt 0:00:25]} 31. Kd3 {[%emt 0:01:46]} Bb1+ {[%emt 0:06:29]} 32. Ke3 {[%emt 0:00:03]} a2 {[%emt 0:00:18]} 33. h4 {[%emt 0:01:45]} h5 {[%emt 0:04:34]} 34. f3 {[%emt 0:03:47]} g6 {[%emt 0:03:34]} 35. e5 {[%emt 0:01:58]} Kf8 {[%emt 0:04:23]} 36. g4 {[%emt 0:05:26]} g5 {[%emt 0:07:20]} 37. Nf5 {[%emt 0:08:51]} Bxf5 {[%emt 0:21:56]} 38. gxf5 {[%emt 0:00:02]} gxh4 {[%emt 0:00:10]} 39. f6 {[%emt 0:00:12]} h3 {[%emt 0:01:35]} 40. c4 {[%emt 0:01:50]} h2 {[%emt 0:01:29]} 41. c5 {[%emt 0:00:04]} Ke8 {[%emt 0:01:23]} 42. c6 {[%emt 0:00:10]} Rc2 {[%emt 0:01:52]} 43. Kd4 {[%emt 0:02:00]} Rxc6 {[%emt 0:00:26]} 44. Kd5 {[%emt 0:00:02]} Rc8 {[%emt 0:00:43]} 0-1

[Event "7. Arber-Senioren-Cup 2019"]
[Site "Bodenmais"]
[Date "2019.07.31"]
[Round "5.3"]
[White "Puehn, Georg"]
[Black "Herbold, Manfred"]
[Result "1/2-1/2"]
[ECO "C00"]
[WhiteElo "1990"]
[BlackElo "2081"]
[Annotator "NA"]
[PlyCount "80"]
[EventDate "2019.07.27"]
[EventType "swiss"]
[EventCountry "GER"]
[SourceTitle "playchess.com"]
[Source "ChessBase"]
[SourceQuality "1"]
[TimeControl "60/7800+30:0"]

1. e4 {[%emt 0:00:00]} e6 2. d3 {[%emt 0:00:00]} d5 {[%emt 0:01:42]} 3. Nd2 {[%emt 0:00:13]} Nf6 {[%emt 0:01:15]} 4. Ngf3 {[%emt 0:10:23]} Nc6 {[%emt 0:01:21]} 5. c3 {[%emt 0:05:11]} a5 {[%emt 0:01:08]} 6. a4 dxe4 {[%emt 0:00:15]} 7. dxe4 {[%emt 0:00:55]} Bc5 8. Bb5 {[%emt 0:07:17]} O-O {[%emt 0:02:25]} 9. O-O {[%emt 0:02:31]} h6 {[%emt 0:13:06]} 10. h3 {[%emt 0:04:06]} Qe7 {[%emt 0:01:00]} 11. Re1 {[%emt 0:05:54]} e5 {[%emt 0:02:14]} 12. Qc2 {[%emt 0:05:21]} Nh5 {[%emt 0:04:43]} 13. Nf1 {[%emt 0:08:41]} Nf4 {[%emt 0:02:14]} 14. Ng3 g6 {[%emt 0:10:37]} 15. Be3 {[%emt 0:13:16]} Nd8 {[%emt 0:02:52]} 16. Rad1 {[%emt 0:12:16]} c6 {[%emt 0:08:34]} 17. Bc4 {[%emt 0:03:12]} Bxe3 {[%emt 0:00:40]} 18. Rxe3 {[%emt 0:00:39]} Qc5 {[%emt 0:00:19]} 19. Bf1 {[%emt 0:02:06]} b5 {[%emt 0:04:44]} 20. Ne1 {[%emt 0:05:33]} Be6 {[%emt 0:06:24]} 21. Ne2 {[%emt 0:03:42]} bxa4 {[%emt 0:05:08]} 22. Qxa4 {[%emt 0:04:07]} Rb8 {[%emt 0:01:25]} 23. Rd2 {[%emt 0:03:44]} Bb3 {[%emt 0:01:33]} 24. Qa1 {[%emt 0:00:06]} Nde6 {[%emt 0:00:26]} 25. g3 {[%emt 0:01:01]} Nxe2+ {[%emt 0:00:23]} 26. Bxe2 {[%emt 0:01:10]} a4 {[%emt 0:01:58]} 27. Qc1 {[%emt 0:02:50]} Rfd8 {[%emt 0:07:07]} 28. Rxd8+ {[%emt 0:04:28]} Rxd8 {[%emt 0:00:40]} 29. Rd3 {[%emt 0:01:06]} Bc4 {[%emt 0:00:50]} 30. Rxd8+ {[%emt 0:07:15]} Nxd8 {[%emt 0:00:06]} 31. Bxc4 {[%emt 0:03:02]} Qxc4 {[%emt 0:00:09]} 32. Qe3 {[%emt 0:01:46]} Ne6 {[%emt 0:01:28]} 33. Nd3 {[%emt 0:04:34]} Qb5 {[%emt 0:03:03]} 34. Kh2 {[%emt 0:01:08]} Kh8 {[%emt 0:00:30]} 35. Qd2 Ng5 {[%emt 0:09:43]} 36. f3 {[%emt 0:03:01]} Qb8 {[%emt 0:04:29]} 37. Qc2 {[%emt 0:03:21]} Qc8 {[%emt 0:02:51]} 38. Nf2 {[%emt 0:02:20]} Qa6 {[%emt 0:02:17]} 39. h4 {[%emt 0:00:15]} Ne6 {[%emt 0:00:12]} 40. Nd3 {[%emt 0:00:23]} Qa5 {[%emt 0:00:52]} 1/2-1/2

[Event "7. Arber-Senioren-Cup 2019"]
[Site "Bodenmais"]
[Date "2019.07.31"]
[Round "5.4"]
[White "Limberg, Siegfried"]
[Black "Koehler, Gerhard"]
[Result "0-1"]
[ECO "A43"]
[WhiteElo "1983"]
[BlackElo "2197"]
[Annotator "NA"]
[PlyCount "40"]
[EventDate "2019.07.27"]
[EventType "swiss"]
[EventCountry "GER"]
[SourceTitle "playchess.com"]
[Source "ChessBase"]
[SourceQuality "1"]
[TimeControl "60/7800+30:0"]

1. d4 {[%emt 0:00:00]} c5 {[%emt 0:00:00]} 2. dxc5 {[%emt 0:00:00]} Nf6 {[%emt 0:03:28]} 3. Nc3 {[%emt 0:01:17]} Qa5 {[%emt 0:02:32]} 4. Bd2 {[%emt 0:02:40]} Qxc5 {[%emt 0:01:02]} 5. e4 {[%emt 0:01:26]} d6 {[%emt 0:12:14]} 6. Bd3 {[%emt 0:06:22]} g6 {[%emt 0:08:13]} 7. Nge2 {[%emt 0:10:08]} Bg7 {[%emt 0:01:00]} 8. Be3 {[%emt 0:01:27]} Qc7 {[%emt 0:00:50]} 9. f3 {[%emt 0:01:11]} a6 {[%emt 0:00:27]} 10. Qd2 {[%emt 0:00:40]} h6 {[%emt 0:03:47]} 11. a3 {[%emt 0:04:24]} b5 {[%emt 0:00:44]} 12. O-O {[%emt 0:00:50]} Nbd7 {[%emt 0:02:40]} 13. Nc1 {[%emt 0:08:04]} Ne5 {[%emt 0:04:03]} 14. Rb1 {[%emt 0:03:24]} Bb7 {[%emt 0:04:17]} 15. Rd1 {[%emt 0:04:43]} Rc8 {[%emt 0:06:06]} 16. N3e2 {[%emt 0:13:20]} O-O {[%emt 0:14:31]} 17. Bxh6 {[%emt 0:06:50]} Bxh6 {[%emt 0:00:17]} 18. Qxh6 {[%emt 0:00:08]} Qc5+ {[%emt 0:00:26]} 19. Kf1 {[%emt 0:01:27]} Neg4 {[%emt 0:02:31]} 20. fxg4 {[%emt 0:02:02]} Nxg4 {[%emt 0:00:22]} 0-1

[Event "7. Arber-Senioren-Cup 2019"]
[Site "Bodenmais"]
[Date "2019.07.31"]
[Round "5.5"]
[White "Glaessl, Matthias"]
[Black "Kurka, Dieter"]
[Result "0-1"]
[ECO "B42"]
[WhiteElo "2148"]
[BlackElo "2006"]
[Annotator "NA"]
[PlyCount "88"]
[EventDate "2019.07.27"]
[EventType "swiss"]
[EventCountry "GER"]
[SourceTitle "playchess.com"]
[Source "ChessBase"]
[SourceQuality "1"]
[TimeControl "60/7800+30:0"]

1. e4 {[%emt 0:00:00]} c5 {[%emt 0:00:00]} 2. Nf3 {[%emt 0:00:00]} e6 {[%emt 0:00:00]} 3. d4 {[%emt 0:00:00]} cxd4 {[%emt 0:00:00]} 4. Nxd4 {[%emt 0:00:00]} a6 {[%emt 0:00:04]} 5. Bd3 {[%emt 0:00:00]} Qc7 {[%emt 0:00:08]} 6. Qe2 {[%emt 0:00:00]} d6 {[%emt 0:00:20]} 7. O-O {[%emt 0:00:58]} Nf6 {[%emt 0:00:08]} 8. c4 {[%emt 0:00:24]} Be7 {[%emt 0:00:16]} 9. Nc3 {[%emt 0:00:27]} Nbd7 {[%emt 0:00:05]} 10. Be3 {[%emt 0:05:04]} b6 {[%emt 0:05:53]} 11. Rac1 {[%emt 0:01:00]} Bb7 {[%emt 0:00:27]} 12. f3 {[%emt 0:00:11]} O-O {[%emt 0:00:17]} 13. Rfd1 {[%emt 0:01:34]} Rac8 {[%emt 0:00:12]} 14. b3 {[%emt 0:02:22]} Rfe8 {[%emt 0:00:21]} 15. Qf2 {[%emt 0:03:37]} Qb8 {[%emt 0:00:53]} 16. Nde2 {[%emt 0:08:14]} d5 {[%emt 0:04:07]} 17. cxd5 {[%emt 0:15:22]} exd5 {[%emt 0:00:50]} 18. Nxd5 {[%emt 0:02:32]} Nxd5 {[%emt 0:00:40]} 19. exd5 {[%emt 0:00:24]} Rxc1 {[%emt 0:00:40]} 20. Rxc1 {[%emt 0:00:08]} Bxd5 {[%emt 0:00:54]} 21. Bd4 {[%emt 0:07:08]} Bd6 {[%emt 0:01:14]} 22. Qh4 {[%emt 0:01:17]} h6 {[%emt 0:00:56]} 23. Nc3 {[%emt 0:02:51]} Nc5 {[%emt 0:29:21]} 24. Bf5 {[%emt 0:07:40]} Be6 {[%emt 0:09:20]} 25. Bb1 {[%emt 0:01:28]} Rd8 {[%emt 0:06:45]} 26. Be3 {[%emt 0:02:27]} Be5 {[%emt 0:02:08]} 27. Ne2 {[%emt 0:02:42]} Bf6 {[%emt 0:03:48]} 28. Qf4 {[%emt 0:02:51]} Bg5 {[%emt 0:01:10]} 29. b4 {[%emt 0:00:55]} Bxf4 {[%emt 0:00:58]} 30. Bxf4 {[%emt 0:00:01]} Qb7 {[%emt 0:00:38]} 31. bxc5 {[%emt 0:00:10]} bxc5 {[%emt 0:00:17]} 32. Be4 {[%emt 0:01:35]} Qb2 {[%emt 0:03:13]} 33. Rc2 {[%emt 0:01:05]} Qa1+ {[%emt 0:01:30]} 34. Kf2 {[%emt 0:00:17]} Rd1 {[%emt 0:05:40]} 35. Bd2 {[%emt 0:03:43]} Rf1+ {[%emt 0:07:46]} 36. Ke3 {[%emt 0:00:09]} f5 {[%emt 0:00:23]} 37. Bc3 {[%emt 0:00:19]} Qd1 {[%emt 0:08:36]} 38. Rd2 {[%emt 0:01:18]} Qa4 {[%emt 0:07:37]} 39. Rd8+ {[%emt 0:01:12]} Kf7 {[%emt 0:00:07]} 40. Bd5 {[%emt 0:00:41]} g5 {[%emt 0:00:44]} 41. Bxe6+ {[%emt 0:01:24]} Kxe6 {[%emt 0:00:08]} 42. g3 {[%emt 0:00:22]} Qc6 {[%emt 0:02:01]} 43. f4 {[%emt 0:00:08]} Ke7 {[%emt 0:05:44]} 44. Rd3 {[%emt 0:00:27]} Rf3+ {[%emt 0:01:23] Rd1} 0-1

[Event "7. Arber-Senioren-Cup 2019"]
[Site "Bodenmais"]
[Date "2019.07.31"]
[Round "5.6"]
[White "Kuempers, Ulrich"]
[Black "Nickl, Klaus"]
[Result "1/2-1/2"]
[ECO "D61"]
[WhiteElo "2030"]
[BlackElo "1988"]
[Annotator "NA"]
[PlyCount "45"]
[EventDate "2019.07.27"]
[EventType "swiss"]
[EventCountry "GER"]
[SourceTitle "playchess.com"]
[Source "ChessBase"]
[SourceQuality "1"]
[TimeControl "60/7800+30:0"]

1. d4 {[%emt 0:00:00]} Nf6 {[%emt 0:00:00]} 2. c4 {[%emt 0:00:00]} e6 {[%emt 0:00:00]} 3. Nf3 {[%emt 0:00:00]} d5 {[%emt 0:00:01]} 4. Nc3 {[%emt 0:01:22]} Be7 {[%emt 0:00:46]} 5. Bg5 {[%emt 0:00:40]} O-O {[%emt 0:01:01]} 6. e3 {[%emt 0:00:09]} Nbd7 {[%emt 0:03:10]} 7. Qc2 {[%emt 0:01:24]} c6 {[%emt 0:00:31]} 8. cxd5 {[%emt 0:02:10]} exd5 {[%emt 0:01:05]} 9. Bd3 {[%emt 0:00:34]} Re8 {[%emt 0:01:00]} 10. O-O {[%emt 0:01:16]} g6 {[%emt 0:07:53]} 11. Rab1 {[%emt 0:07:39]} a5 {[%emt 0:01:19]} 12. Bf4 {[%emt 0:04:30]} Nf8 {[%emt 0:00:38]} 13. h3 {[%emt 0:07:19]} Ne6 {[%emt 0:08:16]} 14. Bh2 {[%emt 0:20:56]} Bd6 {[%emt 0:03:16]} 15. Bxd6 {[%emt 0:03:13]} Qxd6 16. Na4 {[%emt 0:08:57]} Nd7 {[%emt 0:04:13]} 17. Rbc1 {[%emt 0:09:06]} Kg7 {[%emt 0:14:10]} 18. Rfd1 {[%emt 0:00:42]} h6 {[%emt 0:00:41]} 19. a3 {[%emt 0:00:45]} Ng5 {[%emt 0:01:25]} 20. Qe2 {[%emt 0:39:31]} f5 {[%emt 0:09:47]} 21. Ne5 {[%emt 0:08:38]} Rb8 {[%emt 0:03:55]} 22. h4 {[%emt 0:04:17]} Ne4 {[%emt 0:02:25]} 23. Nxd7 {[%emt 0:08:40]} 1/2-1/2

[Event "7. Arber-Senioren-Cup 2019"]
[Site "Bodenmais"]
[Date "2019.07.31"]
[Round "5.7"]
[White "Greul, Hans"]
[Black "Waltenberger, Udo"]
[Result "1/2-1/2"]
[ECO "A48"]
[WhiteElo "2009"]
[BlackElo "1986"]
[Annotator "NA"]
[PlyCount "95"]
[EventDate "2019.07.27"]
[EventType "swiss"]
[EventCountry "GER"]
[SourceTitle "playchess.com"]
[Source "ChessBase"]
[SourceQuality "1"]
[TimeControl "60/7800+30:0"]

1. d4 {[%emt 0:00:00]} Nf6 {[%emt 0:00:00]} 2. Nf3 {[%emt 0:00:00]} g6 {[%emt 0:00:00]} 3. e3 {[%emt 0:00:29]} Bg7 {[%emt 0:00:00]} 4. Be2 {[%emt 0:01:03]} O-O {[%emt 0:00:00]} 5. c4 {[%emt 0:00:09]} d5 {[%emt 0:00:10]} 6. Nc3 {[%emt 0:00:20]} c5 {[%emt 0:00:11]} 7. O-O {[%emt 0:03:16]} cxd4 {[%emt 0:00:08]} 8. Nxd4 {[%emt 0:00:09]} Nc6 {[%emt 0:01:41]} 9. cxd5 {[%emt 0:02:51]} Nxd5 {[%emt 0:00:25]} 10. Nxd5 {[%emt 0:00:23]} Qxd5 {[%emt 0:00:13]} 11. Bf3 {[%emt 0:00:27]} Qd7 {[%emt 0:03:10]} 12. Nxc6 {[%emt 0:03:02]} bxc6 {[%emt 0:00:02]} 13. Qc2 {[%emt 0:00:40]} Bb7 {[%emt 0:01:27]} 14. Rd1 {[%emt 0:00:34]} Qc7 {[%emt 0:03:13]} 15. Bd2 {[%emt 0:01:59]} Rfd8 {[%emt 0:04:28]} 16. Bc3 {[%emt 0:00:58]} Bxc3 {[%emt 0:10:05]} 17. Qxc3 {[%emt 0:00:09]} Rxd1+ {[%emt 0:00:13]} 18. Rxd1 {[%emt 0:00:08]} Rd8 {[%emt 0:00:10]} 19. Rxd8+ {[%emt 0:02:40]} Qxd8 {[%emt 0:00:02]} 20. b4 {[%emt 0:11:40]} Qb6 {[%emt 0:06:58]} 21. g3 {[%emt 0:11:51]} Qb5 {[%emt 0:01:14]} 22. a3 {[%emt 0:10:58]} Ba6 {[%emt 0:10:37]} 23. Qc1 {[%emt 0:00:45]} Bb7 {[%emt 0:01:15]} 24. Qc2 {[%emt 0:11:40]} a5 {[%emt 0:06:08]} 25. Qd2 {[%emt 0:13:21]} axb4 {[%emt 0:00:57]} 26. Qxb4 {[%emt 0:02:06]} Qxb4 {[%emt 0:07:46]} 27. axb4 {[%emt 0:00:08]} Kf8 {[%emt 0:00:01]} 28. b5 {[%emt 0:14:29]} Ke8 {[%emt 0:00:02]} 29. bxc6 {[%emt 0:00:09]} Ba6 {[%emt 0:00:26]} 30. Bd5 {[%emt 0:01:03]} f6 {[%emt 0:02:01]} 31. h4 {[%emt 0:04:27]} h6 {[%emt 0:01:52]} 32. f4 {[%emt 0:00:59]} Kd8 {[%emt 0:03:18]} 33. Be4 {[%emt 0:00:57]} g5 {[%emt 0:01:26]} 34. fxg5 {[%emt 0:02:37]} fxg5 {[%emt 0:00:33]} 35. hxg5 {[%emt 0:00:12]} hxg5 {[%emt 0:00:02]} 36. Kg2 {[%emt 0:01:36]} Kc7 {[%emt 0:01:10]} 37. Bf3 {[%emt 0:04:18]} Bc8 {[%emt 0:02:13]} 38. Kh2 {[%emt 0:02:19]} Kd6 {[%emt 0:00:09]} 39. Kg1 {[%emt 0:02:04]} e5 {[%emt 0:00:51]} 40. Be4 {[%emt 0:02:21]} Bg4 {[%emt 0:11:19]} 41. Kf2 {[%emt 0:00:44]} Bd1 {[%emt 0:00:50]} 42. Kg1 {[%emt 0:07:25]} Bg4 {[%emt 0:08:39]} 43. Kg2 {[%emt 0:01:28]} Kc7 {[%emt 0:00:29]} 44. Bd5 {[%emt 0:04:11]} Kd6 {[%emt 0:01:40]} 45. e4 {[%emt 0:03:15]} Kc7 {[%emt 0:06:34]} 46. Kf2 {[%emt 0:00:09]} Bd1 {[%emt 0:01:38]} 47. Ke3 {[%emt 0:01:45]} Ba4 {[%emt 0:00:12]} 48. Kf3 {[%emt 0:06:33]} 1/2-1/2

[Event "7. Arber-Senioren-Cup 2019"]
[Site "Bodenmais"]
[Date "2019.07.31"]
[Round "5.8"]
[White "Neubauer, Jaroslaus"]
[Black "Godoj, Veit"]
[Result "1/2-1/2"]
[ECO "B06"]
[WhiteElo "2014"]
[BlackElo "1995"]
[Annotator "NA"]
[PlyCount "79"]
[EventDate "2019.07.27"]
[EventType "swiss"]
[EventCountry "GER"]
[SourceTitle "playchess.com"]
[Source "ChessBase"]
[SourceQuality "1"]
[TimeControl "60/7800+30:0"]

1. e4 {[%emt 0:00:00]} g6 {[%emt 0:00:00]} 2. d4 {[%emt 0:00:00]} Bg7 {[%emt 0:00:00]} 3. Nc3 {[%emt 0:00:11]} c5 {[%emt 0:00:00]} 4. dxc5 {[%emt 0:00:57]} Bxc3+ {[%emt 0:02:03]} 5. bxc3 {[%emt 0:00:17]} Nf6 {[%emt 0:00:05]} 6. e5 {[%emt 0:03:34]} Ne4 {[%emt 0:00:55]} 7. Qd4 {[%emt 0:00:36]} Qa5 {[%emt 0:00:08]} 8. e6 {[%emt 0:08:18]} f6 {[%emt 0:04:04]} 9. exd7+ {[%emt 0:04:00]} Nxd7 {[%emt 0:03:52]} 10. Qb4 {[%emt 0:13:20]} Qxc5 {[%emt 0:04:11]} 11. Qxc5 {[%emt 0:00:18]} Ndxc5 {[%emt 0:05:47]} 12. Be3 {[%emt 0:03:38]} b6 {[%emt 0:10:09]} 13. Bb5+ {[%emt 0:02:31]} Bd7 {[%emt 0:00:25]} 14. c4 {[%emt 0:02:15]} Rc8 {[%emt 0:01:02]} 15. Ne2 {[%emt 0:01:36]} Nd6 {[%emt 0:15:52]} 16. a4 {[%emt 0:04:16]} Ndb7 {[%emt 0:05:57]} 17. Nd4 {[%emt 0:05:17]} e5 {[%emt 0:03:44]} 18. Nb3 {[%emt 0:00:36]} a5 {[%emt 0:00:18]} 19. O-O {[%emt 0:09:12]} Bxb5 {[%emt 0:00:14]} 20. cxb5 {[%emt 0:02:54]} Ke7 {[%emt 0:00:11]} 21. f4 {[%emt 0:02:04]} Nd7 {[%emt 0:15:41]} 22. fxe5 {[%emt 0:04:14]} fxe5 {[%emt 0:00:57]} 23. Rf2 {[%emt 0:05:49]} Rhf8 {[%emt 0:00:30]} 24. Rd2 {[%emt 0:00:36]} Rf7 {[%emt 0:13:57]} 25. Rad1 {[%emt 0:02:21]} Ke6 {[%emt 0:00:30]} 26. h3 {[%emt 0:02:30]} Rc4 {[%emt 0:00:10]} 27. Ra1 {[%emt 0:13:06]} h5 {[%emt 0:01:44]} 28. Ra2 {[%emt 0:02:38]} Nbc5 {[%emt 0:02:46]} 29. Nxc5+ {[%emt 0:02:33]} Nxc5 {[%emt 0:00:01]} 30. Bxc5 {[%emt 0:01:17]} Rxc5 {[%emt 0:00:34]} 31. Ra3 {[%emt 0:01:44]} Rd5 {[%emt 0:09:54]} 32. Rxd5 {[%emt 0:04:21]} Kxd5 {[%emt 0:00:02]} 33. Rd3+ {[%emt 0:02:11]} Ke6 {[%emt 0:07:55]} 34. c4 {[%emt 0:00:48]} e4 {[%emt 0:00:47]} 35. Rd1 {[%emt 0:05:09]} Rf5 {[%emt 0:03:15]} 36. Rd4 {[%emt 0:03:58]} Ke5 {[%emt 0:06:10]} 37. Rd5+ {[%emt 0:02:10]} Ke6 {[%emt 0:00:01]} 38. Rd4 {[%emt 0:02:32]} e3 {[%emt 0:12:16]} 39. g4 {[%emt 0:05:25]} Re5 40. Re4 1/2-1/2